bitfinex/quotes_ETHUSD_20220120
["timestamp","ask_amount","ask_price","bid_price","bid_amount"]
[1642671952546,0.766,3143.8,3143.7,3.2073895]
[1642671952749,0.466,3143.8,3143.7,3.2073895]
[1642671953148,0.466,3143.8,3143.7,0.0073895]
[1642671953548,0.466,3143.8,3142.8,0.01250531]
[1642671953751,0.466,3143.8,3142.8,0.15850762]
[1642671953949,0.03595434,3145.0,3143.2,0.01267104]
[1642671954250,1.59123,3145.3,3143.3,0.0096632]
[1642671954251,0.466,3144.8,3143.3,0.0096632]
[1642671954447,0.466,3144.8,3143.8,1.31853842]
[1642671954649,0.466,3144.8,3144.1,1.21066532]
[1642671954650,2.05715,3144.8,3144.1,1.21066532]
[1642671954886,0.466,3144.8,3144.1,1.21066532]
[1642671955091,0.766,3144.8,3144.2,0.00454738]
[1642671955292,0.466,3144.8,3144.2,0.00454738]
[1642671955692,0.466,3144.8,3144.3,1.16559241]
[1642671956093,0.466,3144.8,3144.4,0.00341054]
[1642671956297,0.766,3144.8,3144.4,0.00341054]
[1642671956696,0.766,3144.8,3143.2,3.69674543]
[1642671956697,0.766,3144.8,3143.2,2.97748538]
[1642671956896,0.766,3144.8,3143.2,2.96481434]
[1642671956897,0.7957796,3144.3,3143.2,2.96481434]
[1642671957196,0.79575,3144.0,3143.3,0.00625266]
[1642671957397,1.26175,3144.0,3143.3,0.00625266]
[1642671957994,2.26175,3144.0,3143.4,1.31529412]
[1642671958195,2.26175,3144.0,3143.3,0.00625266]
[1642671958196,1.86175,3144.0,3143.3,0.00625266]
[1642671958497,2.86175,3144.0,3142.8,0.00909477]
[1642671958745,0.79578,3143.7,3142.8,0.00909477]
[1642671959144,0.79578,3143.7,3143.2,1.37097955]
[1642671959145,3.04438434,3143.6,3143.2,1.37097955]
[1642671959345,1.09578,3143.7,3143.2,1.37097955]
[1642671959544,1.39578,3143.7,3143.2,1.37097955]
[1642671959751,0.79578,3143.7,3143.2,1.37097955]
[1642671959948,1.39578,3143.7,3142.8,0.00909477]
[1642671960151,3.6324732,3143.6,3142.8,0.00909477]
[1642671960349,0.7959,3143.4,3142.8,0.00909477]
[1642671960549,1.3959,3143.4,3142.8,0.00909477]
[1642671960951,1.3959,3143.4,3143.1,1.10172386]
[1642671961150,0.3,3143.4,3143.1,1.10172386]
[1642671961349,0.3,3143.4,3143.2,0.00682108]
[1642671961551,0.466,3143.6,3143.2,0.00682108]
[1642671961552,1.066,3143.6,3143.2,0.00682108]
[1642671964380,1.86194,3143.6,3143.2,0.00682108]
[1642671964580,2.86194,3143.6,3142.8,0.00909477]
[1642671964781,2.86194,3143.6,3142.6,0.01023162]
[1642671964782,0.79592,3143.4,3142.6,0.01023162]
[1642671964993,1.09592,3143.4,3142.6,0.01023162]
[1642671965187,0.466,3143.3,3142.6,0.01023162]
[1642671965390,0.766,3143.3,3142.6,0.01023162]
[1642671965587,1.766,3143.3,3142.6,0.01023162]
[1642671965986,0.79595,3143.1,3142.6,0.01023162]
[1642671966236,1.26195,3143.1,3142.6,0.01023162]
[1642671966939,1.26195,3143.1,3142.3,0.01193689]
[1642671967137,1.26195,3143.1,3142.1,0.01307374]
[1642671967337,4.46195,3143.1,3142.2,2.70893158]
[1642671967537,5.46195,3143.1,3142.4,1.14450048]
[1642671967937,5.46195,3143.1,3142.5,0.01080004]
[1642671968337,4.46195,3143.1,3142.5,0.01080004]
[1642671968939,4.46195,3143.1,3142.0,7.1]
[1642671968940,4.46195,3143.1,3142.2,0.01250531]
[1642671969439,4.46195,3143.1,3142.3,2.70890916]
[1642671969891,4.46195,3143.1,3142.4,0.01136847]
[1642671970287,1.7960811,3143.0,3142.4,0.01136847]
[1642671970486,1.59223,3142.8,3142.4,0.01136847]
[1642671970686,1.59223,3142.8,3142.0,10.06481434]
[1642671970687,1.26205,3142.7,3142.2,0.01250531]
[1642671970887,1.26205,3142.7,3142.1,0.01307374]
[1642671971088,2.26205,3142.7,3142.3,1.22716953]
[1642671971287,1.26205,3142.7,3142.3,1.22716953]
[1642671971489,1.26205,3142.7,3142.4,0.01136847]
[1642671971490,2.26205,3142.7,3142.4,0.01136847]
[1642671972487,2.26205,3142.7,3142.1,0.01307374]
[1642671973089,2.26205,3142.7,3142.1,1.46357838]
[1642671973090,3.58444574,3142.7,3142.1,1.46357838]
[1642671973491,3.58444574,3142.7,3142.2,0.01250531]
[1642671973934,3.58444574,3142.7,3142.1,0.01307374]
[1642671974135,3.58444574,3142.7,3142.2,2.70917683]
[1642671974540,3.58444574,3142.7,3142.3,0.01193689]
[1642671974738,2.26205,3142.7,3142.3,0.01193689]
[1642671974942,2.26205,3142.7,3142.1,0.01307374]
[1642671975641,2.26205,3142.7,3142.2,2.70918533]
[1642671976041,2.26205,3142.7,3142.3,0.01193689]
[1642671976643,2.26205,3142.7,3142.1,0.01307374]
[1642671976644,20.97205,3142.7,3142.1,0.01307374]
[1642671976844,2.26205,3142.7,3142.1,0.01307374]
[1642671977147,2.26205,3142.7,3142.2,2.70924587]
[1642671977579,2.26205,3142.7,3142.3,0.01193689]
[1642671977779,2.26205,3142.7,3142.4,2.70924587]
[1642671978181,2.26205,3142.7,3142.5,0.01080004]
[1642671978586,2.26205,3142.7,3142.5,0.00987009]
[1642671978786,2.26205,3142.7,3142.1,0.01307374]
[1642671978985,2.56205,3142.7,3142.2,2.70917779]
[1642671979387,2.56205,3142.7,3142.3,0.01100694]
[1642671979588,21.27205,3142.7,3142.3,0.01100694]
[1642671979792,2.26205,3142.7,3142.3,0.01100694]
[1642671979989,2.26205,3142.7,3142.4,2.70930213]
[1642671980190,2.26205,3142.7,3142.1,0.01214379]
[1642671980389,2.26205,3142.7,3142.0,7.1]
[1642671980390,2.26205,3142.7,3142.5,0.00987009]
[1642671980590,2.56205,3142.7,3142.1,0.01214379]
[1642671980790,2.56205,3142.7,3142.3,0.01100694]
[1642671980989,2.56205,3142.7,3142.4,2.70930926]
[1642671981229,2.56205,3142.7,3142.3,0.01100694]
[1642671981430,2.56205,3142.7,3142.5,0.00987009]
[1642671981631,2.26205,3142.7,3142.6,2.70918927]
[1642671981829,2.26205,3142.7,3142.5,0.00987009]
[1642671981830,2.56205,3142.7,3142.5,0.00987009]
[1642671982029,2.56205,3142.7,3142.0,7.1]
[1642671982030,2.26205,3142.7,3142.6,0.00930167]
[1642671982230,2.26205,3142.7,3142.1,0.01214379]
[1642671982432,2.56205,3142.7,3142.2,2.70929182]
[1642671982729,2.56205,3142.7,3142.3,1.35878469]
[1642671982931,2.56205,3142.7,3142.4,2.70929182]
[1642671983130,2.56205,3142.7,3142.4,2.71973034]
[1642671983329,2.56205,3142.7,3142.5,2.71916191]
[1642671983529,2.56205,3142.7,3142.6,2.70929182]
[1642671983729,2.56205,3142.7,3142.6,2.71859349]
[1642671984532,21.91,3143.1,3142.9,3.87467233]
[1642671984533,3.2,3143.1,3142.9,3.87467233]
[1642671984891,3.2,3143.1,3143.0,2.7163198]
[1642671989137,3.2,3143.1,3143.0,5.27439079]
[1642671989939,3.2,3143.1,3143.0,5.29396873]
[1642671990138,3.2,3143.1,3143.0,2.7163198]
[1642671990942,3.2,3143.1,3143.0,2.706188]
[1642671993087,3.2,3143.1,3143.0,5.35979078]
[1642671993887,3.2,3143.1,3143.0,2.706188]
[1642671995093,3.2,3143.1,3143.0,0.00702798]
[1642671995895,3.5,3143.1,3143.0,0.00702798]
[1642671996146,5.266,3143.1,3143.0,0.00702798]
[1642671996344,4.266,3143.1,3143.0,0.00702798]
[1642671996550,5.266,3143.1,3143.0,0.00702798]
[1642671998353,8.21023867,3143.1,3143.0,0.00702798]
[1642671999888,8.21023867,3143.1,3143.0,0.00589113]
[1642672000286,26.92023867,3143.1,3143.0,0.00589113]
[1642672000485,27.61433867,3143.1,3143.0,0.00589113]
[1642672000885,27.61433867,3143.1,3142.9,3.87467233]
[1642672000886,3.8,3143.0,3142.9,3.87467233]
[1642672001086,10.11489157,3143.0,3142.9,3.87467233]
[1642672001287,11.20564688,3143.0,3142.9,3.87467233]
[1642672001685,7.40564688,3143.0,3142.9,3.87467233]
[1642672003192,4.14894531,3143.0,3142.9,3.87467233]
[1642672003387,3.05819,3143.0,3142.9,3.87467233]
[1642672004036,6.02089062,3143.0,3142.9,3.87467233]
[1642672004639,7.50629381,3143.0,3142.9,3.87467233]
[1642672008995,6.02089062,3143.0,3142.9,3.87467233]
[1642672009195,3.05819,3143.0,3142.9,3.87467233]
[1642672010196,1.466,3143.0,3142.9,3.87467233]
[1642672012835,1.466,3143.0,3142.9,6.58357005]
[1642672013236,1.466,3143.0,3142.9,3.87467233]
[1642672013938,0.466,3143.0,3142.9,6.58353458]
[1642672014142,3.2,3143.1,3142.9,9.34194783]
[1642672014440,3.2,3143.1,3143.0,2.70886225]
[1642672014892,3.5,3143.1,3143.0,2.70886225]
[1642672016689,3.8,3143.1,3143.0,2.70886225]
[1642672016888,3.5,3143.1,3143.0,2.70886225]
[1642672017789,4.5,3143.1,3143.0,2.70886225]
[1642672017990,3.5,3143.1,3143.0,2.70886225]
[1642672018833,3.2,3143.1,3143.0,2.70886225]
[1642672019831,3.5,3143.1,3143.0,2.70886225]
[1642672021238,3.5,3143.1,3143.0,2.70794763]
[1642672023086,3.8,3143.1,3143.0,2.70794763]
[1642672023486,3.2,3143.1,3143.0,2.70794763]
[1642672025891,3.8,3143.1,3143.0,2.70794763]
[1642672026138,4.8,3143.1,3143.0,2.70794763]
[1642672026537,4.8,3143.1,3142.9,3.87467233]
[1642672026839,1.0,3143.0,3142.9,3.87467233]
[1642672036744,1.466,3143.0,3142.9,3.87467233]
[1642672042740,3.516,3143.0,3142.9,3.87467233]
[1642672046192,1.466,3143.0,3142.9,3.87385064]
[1642672046393,20.176,3143.0,3142.9,3.87385064]
[1642672046998,0.7961349,3142.7,3142.1,3.8792]
[1642672047196,0.7961349,3142.7,3142.2,2.7091662]
[1642672047197,1.2621349,3142.7,3142.2,2.7091662]
[1642672047399,1.89562048,3142.7,3142.3,2.7091662]
[1642672047598,2.89562048,3142.7,3142.3,2.7091662]
[1642672047800,2.89562048,3142.7,3142.4,0.00341054]
[1642672049234,2.09948558,3142.7,3142.4,0.00341054]
[1642672050839,2.89559968,3142.7,3142.4,0.00341054]
[1642672051039,0.83122391,3142.6,3142.4,0.00341054]
[1642672051242,0.466,3142.5,3142.4,0.00341054]
[1642672052241,0.766,3142.5,3142.4,0.00341054]
[1642672052491,2.3018,3142.5,3142.4,0.00341054]
[1642672052691,6.2518,3142.5,3142.4,0.00341054]
[1642672052891,2.9962516,3142.4,3142.1,2.7091662]
[1642672053093,1.766,3142.3,3142.2,0.00113684]
[1642672053289,1.13788611,3142.2,3142.1,2.66030304]
[1642672053490,1.60388611,3142.2,3142.1,2.66030304]
[1642672053691,1.60388611,3142.2,3142.0,7.1]
[1642672055701,1.60388611,3142.2,3142.0,0.72926]
[1642672058246,2.6,3142.1,3141.2,1.2277]
[1642672058444,0.79636,3141.9,3141.2,1.2277]
[1642672058644,0.466,3141.8,3141.3,0.00511582]
[1642672059247,0.466,3141.8,3140.9,3.68]
[1642672059248,0.466,3141.8,3141.0,0.00682109]
[1642672059445,7.3247,3141.8,3141.0,0.00682109]
[1642672059645,7.3247,3141.8,3141.0,3.00604989]
[1642672059646,1.59293,3141.4,3141.0,3.00604989]
[1642672059891,0.466,3141.3,3141.0,3.00604989]
[1642672060091,0.766,3141.3,3141.1,0.00625266]
[1642672060392,0.29236875,3141.2,3140.9,0.00738951]
[1642672060593,0.466,3141.1,3140.9,1.44812293]
[1642672060794,1.3,3141.3,3141.1,0.932]
[1642672060993,0.466,3141.2,3141.1,0.932]
[1642672061192,0.766,3141.2,3141.1,0.932]
[1642672061792,1.56242,3141.2,3141.1,0.932]
[1642672062192,2.86242,3141.2,3141.1,0.932]
[1642672062393,1.86242,3141.2,3141.1,0.932]
[1642672062592,2.86242,3141.2,3141.1,0.932]
[1642672062993,1.86242,3141.2,3141.1,0.932]
[1642672063193,2.86242,3141.2,3141.1,0.932]
[1642672063395,1.86242,3141.2,3141.1,0.932]
[1642672063636,2.86242,3141.2,3141.1,0.932]
[1642672063838,1.86242,3141.2,3141.1,0.932]
[1642672064039,2.86242,3141.2,3141.1,0.932]
[1642672064239,1.86242,3141.2,3141.1,0.932]
[1642672064439,2.86242,3141.2,3141.1,0.932]
[1642672064838,6.06242,3141.2,3141.1,0.932]
[1642672065242,5.35189869,3141.2,3141.1,0.932]
[1642672067692,6.14831869,3141.2,3141.1,0.932]
[1642672069793,6.14831869,3141.2,3140.3,5.17633757]
[1642672069794,6.19308,3141.1,3140.3,5.17633757]
[1642672070000,6.19308,3141.1,3139.7,4.06486804]
[1642672070001,6.91874,3140.8,3139.7,5.26896804]
[1642672070195,6.91874,3140.8,3140.4,0.01023163]
[1642672070196,1.27748861,3140.5,3140.4,0.01023163]
[1642672070397,4.966,3140.5,3140.4,0.01023163]
[1642672070699,4.05,3140.4,3139.7,1.2041]
[1642672070904,4.05,3140.4,3139.5,3.2737]
[1642672070905,2.05959,3140.3,3139.5,3.2737]
[1642672071145,2.05959,3140.3,3139.0,3.8076]
[1642672071146,3.35959,3140.3,3139.8,0.00341054]
[1642672071344,3.9,3140.1,3139.0,7.01761054]
[1642672071645,1.466,3140.0,3139.1,0.00397896]
[1642672071843,2.2628094,3140.0,3139.1,0.00397896]
[1642672072043,2.2628094,3140.0,3139.1,2.98728686]
[1642672072044,1.466,3140.0,3139.1,2.98728686]
[1642672072443,0.466,3140.0,3139.9,1.25492377]
[1642672073043,0.466,3140.0,3139.9,3.94401937]
[1642672073242,0.466,3140.0,3139.9,1.25492377]
[1642672073442,0.466,3140.0,3139.9,3.88181415]
[1642672074444,0.466,3140.0,3139.9,2.71089038]
[1642672074744,0.466,3140.0,3139.3,2.71098655]
[1642672074745,1.066,3140.0,3139.3,2.71098655]
[1642672074990,1.15184856,3140.0,3139.4,2.71099096]
[1642672075192,1.15184856,3140.0,3139.5,2.71099096]
[1642672075390,1.15184856,3140.0,3139.6,2.71099096]
[1642672075590,1.15184856,3140.0,3139.7,3.82779535]
[1642672075791,1.15184856,3140.0,3139.8,2.71099096]
[1642672075992,4.35184856,3140.0,3139.8,2.71099096]
[1642672076194,1.0,3139.9,3139.8,2.71099096]
[1642672076491,1.0,3139.9,3139.6,0.00113684]
[1642672076893,1.0,3139.9,3139.5,2.71099096]
[1642672077093,1.0,3139.9,3139.6,2.71099096]
[1642672077294,1.0,3139.9,3139.6,0.00113684]
[1642672077693,1.0,3139.9,3139.6,2.71226553]
[1642672077896,1.0,3139.9,3139.7,2.71112869]
[1642672078095,1.0,3139.9,3139.6,0.00113684]
[1642672078739,3.91998211,3140.0,3139.9,2.0]
[1642672079136,3.31998211,3140.0,3139.9,4.71111885]
[1642672079337,3.28584856,3140.0,3139.9,7.41194672]
[1642672080844,0.0022737,3140.2,3139.9,7.55794903]
[1642672081043,0.0022737,3140.2,3140.1,5.16230707]
[1642672081246,0.466,3141.2,3140.1,11.04633953]
[1642672081444,0.466,3141.2,3140.2,2.71111885]
[1642672081645,0.00738951,3141.1,3140.2,2.71111885]
[1642672081942,0.466,3141.2,3140.2,2.71111885]
[1642672081943,0.00682108,3141.0,3140.2,2.71111885]
[1642672082395,0.00625266,3140.9,3140.2,2.71111885]
[1642672082791,2.066,3141.2,3140.2,2.71111885]
[1642672082792,0.47168424,3140.8,3140.2,2.71111885]
[1642672082992,0.47168424,3140.8,3139.9,2.0]
[1642672082993,0.466,3140.7,3139.9,2.0]
[1642672083192,0.79662,3140.5,3140.0,2.71076273]
[1642672083390,0.766,3140.4,3140.0,2.71076273]
[1642672083593,0.76941054,3140.4,3140.0,2.71076273]
[1642672083794,0.00284212,3140.3,3140.0,2.71076273]
[1642672084193,0.0022737,3140.2,3140.0,2.71076273]
[1642672084394,0.0022737,3140.2,3140.0,1.24577313]
[1642672084596,0.00170527,3140.1,3140.0,1.24577313]
[1642672084794,0.00170527,3140.1,3140.0,3.95667545]
[1642672086141,0.00170527,3140.1,3140.0,6.93729127]
[1642672086344,0.00170527,3140.1,3140.0,3.95667545]
[1642672087745,0.00170527,3140.1,3140.0,6.93729127]
[1642672087944,0.00170527,3140.1,3140.0,3.95667545]
[1642672088444,0.00170527,3140.1,3140.0,6.65471217]
[1642672089044,0.00170527,3140.1,3140.0,3.95667545]
[1642672089646,0.00170527,3140.1,3140.0,6.56528872]
[1642672090089,0.00170527,3140.1,3140.0,6.58931355]
[1642672090491,0.00170527,3140.1,3140.0,3.98070028]
[1642672090792,0.593475,3141.6,3140.2,5.15]
[1642672090993,0.127475,3141.6,3141.1,0.01292644]
[1642672091194,0.127475,3141.6,3141.2,0.04677609]
[1642672091592,0.127475,3141.6,3140.7,0.02097593]
[1642672091791,0.127475,3141.6,3140.6,2.98061582]
[1642672091792,0.127475,3141.6,3141.0,1.15568528]
[1642672092090,0.127475,3141.6,3141.0,4.1363011]
[1642672092291,0.127475,3141.6,3141.0,1.15568528]
[1642672092493,1.38963284,3142.0,3141.0,1.15568528]
[1642672092691,1.79618,3142.2,3141.1,2.70988417]
[1642672092892,0.01023163,3141.9,3141.1,2.70988417]
[1642672093291,0.0096632,3141.8,3141.1,2.70988417]
[1642672093491,0.0096632,3141.8,3141.0,4.1363011]
[1642672093737,0.00909478,3141.7,3141.1,2.70984776]
[1642672094139,0.00852636,3141.6,3141.1,2.70984776]
[1642672094538,0.00795793,3141.5,3141.1,2.70984776]
[1642672094740,0.00795793,3141.5,3141.2,2.60124589]
[1642672094942,0.00738951,3141.4,3141.2,2.61371014]
[1642672095343,0.00682108,3141.3,3141.2,2.61371014]
[1642672095844,0.00682108,3141.3,3141.2,5.3234729]
[1642672097243,0.00682108,3141.3,3141.2,2.72222701]
[1642672097488,0.00682108,3141.3,3141.2,0.01246425]
[1642672097893,0.00682108,3141.3,3141.2,2.72229953]
[1642672098193,0.00682108,3141.3,3141.2,5.58396868]
[1642672102149,0.00682108,3141.3,3141.2,2.72229953]
[1642672102948,0.00682108,3141.3,3141.2,0.01246425]
[1642672103948,0.80329408,3141.3,3141.2,0.01246425]
[1642672104149,1.32634257,3141.3,3141.2,0.01246425]
[1642672104550,1.62634257,3141.3,3141.2,0.01246425]
[1642672104749,0.30682108,3141.3,3141.2,0.01246425]
[1642672105016,0.30682108,3141.3,3141.1,0.02382955]
[1642672105214,0.466,3141.2,3141.1,0.02382955]
[1642672105415,0.47225266,3141.2,3141.1,0.02382955]
[1642672105817,1.9801196,3141.2,3141.1,0.02382955]
[1642672107021,0.47225266,3141.2,3141.1,0.02382955]
[1642672108637,2.06171822,3141.2,3141.1,0.02382955]
[1642672108841,0.47225266,3141.2,3141.1,0.02382955]
[1642672109843,1.8702524,3141.2,3141.1,0.02382955]
[1642672110044,2.1702524,3141.2,3141.1,0.01246425]
[1642672110444,2.4702524,3141.2,3141.1,0.01246425]
[1642672110644,0.79861005,3141.4,3141.1,3.81246425]
[1642672110850,0.92393,3142.0,3141.2,5.69877043]
[1642672110851,0.12746,3142.0,3141.2,5.69877043]
[1642672111047,0.466,3142.4,3141.4,0.06936741]
[1642672111246,0.466,3142.4,3141.1,0.02499525]
[1642672111247,0.00170527,3141.5,3141.1,0.02499525]
[1642672111446,0.00170527,3141.5,3141.2,2.70991903]
[1642672111646,0.00337534,3141.4,3141.2,2.70991903]
[1642672112046,0.00223849,3141.4,3141.1,0.01246425]
[1642672113898,0.00223849,3141.4,3141.2,2.7099678]
[1642672114901,0.00223849,3141.4,3141.3,2.59479533]
[1642672115100,0.00223849,3141.4,3141.3,2.60973647]
[1642672115301,0.00223849,3141.4,3141.3,0.01494114]
[1642672115302,0.00337534,3141.4,3141.3,0.01494114]
[1642672115500,0.00337534,3141.4,3141.3,2.72481349]
[1642672115700,0.00337534,3141.4,3141.3,0.01494114]
[1642672115902,0.00337534,3141.4,3141.3,8.75293921]
[1642672116145,0.00337534,3141.4,3141.3,10.34098609]
[1642672116340,3.20113685,3141.4,3141.3,10.3458996]
[1642672116539,3.20113685,3141.4,3141.3,5.50491992]
[1642672116739,3.20113685,3141.4,3141.3,2.729727]
[1642672117945,3.20113685,3141.4,3141.3,5.41353061]
[1642672120097,3.20113685,3141.4,3141.3,5.42706295]
[1642672122394,3.20113685,3141.4,3141.3,2.74325934]
[1642672124037,3.20113685,3141.4,3141.3,5.43441288]
[1642672124238,3.20113685,3141.4,3141.3,2.74325934]
[1642672124538,3.20113685,3141.4,3141.3,5.43006332]
[1642672124942,3.20113685,3141.4,3141.3,5.41653098]
[1642672125541,3.20113685,3141.4,3141.3,2.729727]
[1642672125941,3.20113685,3141.4,3141.3,5.41910022]
[1642672126144,3.20113685,3141.4,3141.3,2.729727]
[1642672126346,3.20113685,3141.4,3141.3,5.42332519]
[1642672126745,3.20113685,3141.4,3141.3,2.729727]
[1642672127994,3.20113685,3141.4,3141.3,5.42150193]
[1642672128396,3.20113685,3141.4,3141.3,5.4177097]
[1642672129095,3.20113685,3141.4,3141.3,2.729727]
[1642672129996,3.50113685,3141.4,3141.3,2.729727]
[1642672131339,3.50113685,3141.4,3141.3,2.72870685]
[1642672132740,3.20113685,3141.4,3141.3,2.72870685]
[1642672145395,3.2,3141.4,3141.3,2.72870685]
[1642672150107,3.2,3141.4,3141.3,5.4638822]
[1642672150507,3.2,3141.4,3141.3,8.0638822]
[1642672150710,3.7453,3142.2,3141.3,8.0638822]
[1642672150711,0.466,3142.6,3141.5,1.13502063]
[1642672150908,3.2408,3142.7,3141.6,5.70442283]
[1642672151108,0.00511581,3142.1,3142.0,2.414239]
[1642672151311,0.00511581,3142.1,3142.0,3.98326499]
[1642672154244,0.00511581,3142.1,3142.0,5.32469038]
[1642672154944,0.00511581,3142.1,3142.0,5.34785233]
[1642672155543,0.00511581,3142.1,3142.0,2.7330343]
[1642672155746,0.00511581,3142.1,3142.0,0.02316195]
[1642672155947,0.00511581,3142.1,3142.0,2.73259688]
[1642672156146,0.00511581,3142.1,3142.0,0.02316195]
[1642672156347,0.00511581,3142.1,3142.0,0.02715004]
[1642672159400,0.00511581,3142.1,3141.5,2.09332861]
[1642672159599,0.00511581,3142.1,3141.6,2.70992219]
[1642672159802,0.00454739,3142.0,3141.6,2.70992219]
[1642672160206,0.00397897,3141.9,3141.6,2.70992219]
[1642672160604,0.00341054,3141.8,3141.6,5.28028643]
[1642672160806,0.00341054,3141.8,3141.7,2.70992219]
[1642672161005,1.6382,3142.7,3142.2,1.11943294]
[1642672161244,1.6382,3142.7,3141.5,0.95815067]
[1642672161245,0.466,3142.7,3141.5,0.95815067]
[1642672161450,0.00284212,3141.7,3141.6,2.70973746]
[1642672162246,0.00284212,3141.7,3141.6,3.98562153]
[1642672166300,0.00284212,3141.7,3141.6,3.99030619]
[1642672169242,0.00284212,3141.7,3141.6,2.71442212]
[1642672179544,0.00284212,3141.7,3141.6,2.71348629]
[1642672179998,0.00284212,3141.7,3141.6,2.73686288]
[1642672180601,0.00284212,3141.7,3141.6,5.31560668]
[1642672180800,0.00284212,3141.7,3141.6,2.73686288]
[1642672182501,0.00284212,3141.7,3141.6,5.30738548]
[1642672182699,0.00284212,3141.7,3141.6,2.73686288]
[1642672182902,0.00284212,3141.7,3141.6,5.33402496]
[1642672183099,0.00284212,3141.7,3141.6,2.73686288]
[1642672183299,0.00284212,3141.7,3141.6,5.31232132]
[1642672183500,0.00284212,3141.7,3141.6,2.73686288]
[1642672185149,0.00284212,3141.7,3141.6,2.71348629]
[1642672185552,0.00193965,3141.7,3141.6,2.71348629]
[1642672191006,1.25394487,3142.4,3141.6,2.71348629]
[1642672191245,1.85394487,3142.4,3141.6,0.00468466]
[1642672191444,1.83191681,3142.4,3141.6,0.00468466]
[1642672191944,2.87292182,3142.3,3141.7,0.00341054]
[1642672192146,1.83191681,3142.4,3141.7,0.00341054]
[1642672192944,1.55394487,3142.4,3141.7,0.00341054]
[1642672193746,1.85394487,3142.4,3141.7,0.00341054]
[1642672193948,1.55394487,3142.4,3141.7,0.00341054]
[1642672195699,1.25394487,3142.4,3141.7,0.00341054]
[1642672196100,1.85394487,3142.4,3141.7,0.00341054]
[1642672196301,1.55394487,3142.4,3141.9,0.00466075]
[1642672196499,1.25394487,3142.4,3141.9,0.00466075]
[1642672196699,1.25394487,3142.4,3142.0,0.00170527]
[1642672198943,1.85394487,3142.4,3142.0,0.00170527]
[1642672199843,1.85394487,3142.4,3142.0,2.71163368]
[1642672200248,1.25394487,3142.4,3142.1,0.00113685]
[1642672200549,1.85394487,3142.4,3142.1,0.00113685]
[1642672201348,1.85394487,3142.4,3142.2,0.00463684]
[1642672205903,1.55394487,3142.4,3142.2,0.00463684]
[1642672206347,1.55394487,3142.4,3142.0,1.28868744]
[1642672206744,1.55394487,3142.4,3142.1,0.00113685]
[1642672208748,1.85394487,3142.4,3142.1,0.00113685]
[1642672209247,4.74316077,3142.4,3142.1,0.00113685]
[1642672209649,1.0,3142.3,3142.1,0.00113685]
[1642672209896,0.466,3142.2,3142.1,0.00113685]
[1642672211505,0.466,3142.2,3142.1,0.00578166]
[1642672214345,0.466,3142.2,3142.1,0.00494371]
[1642672214546,0.766,3142.2,3142.1,0.00494371]
[1642672214949,0.466,3142.2,3142.1,0.00494371]
[1642672216153,3.68750165,3142.2,3142.1,0.00494371]
[1642672216553,4.68750165,3142.2,3142.1,0.00494371]
[1642672220304,4.68750165,3142.2,3141.5,0.16217067]
[1642672220305,19.50541064,3142.0,3141.5,0.16217067]
[1642672220505,3.80639459,3141.9,3141.5,0.16217067]
[1642672220704,3.80639459,3141.9,3141.6,0.00284211]
[1642672220905,1.0,3141.8,3141.6,0.00284211]
[1642672221155,3.88060672,3141.7,3141.6,0.00284211]
[1642672221349,4.18060672,3141.7,3141.6,0.00284211]
[1642672221550,5.18060672,3141.7,3141.6,0.00284211]
[1642672221953,2.066,3141.7,3141.6,0.00284211]
[1642672222154,1.066,3141.7,3141.6,0.00284211]
[1642672222354,4.02457366,3141.7,3141.6,0.00284211]
[1642672222560,2.066,3141.7,3141.6,0.00284211]
[1642672222856,5.02616858,3141.7,3141.6,0.00284211]
[1642672223057,2.066,3141.7,3141.6,0.00284211]
[1642672223457,1.066,3141.7,3141.6,0.00284211]
[1642672223756,4.00902238,3141.7,3141.6,0.00284211]
[1642672224156,5.00902238,3141.7,3141.6,0.00284211]
[1642672224356,2.066,3141.7,3141.6,0.00284211]
[1642672224559,1.066,3141.7,3141.6,0.00284211]
[1642672224756,4.06500965,3141.7,3141.6,0.00284211]
[1642672225002,1.066,3141.7,3141.6,0.00284211]
[1642672225202,2.066,3141.7,3141.6,0.00284211]
[1642672225602,1.066,3141.7,3141.6,0.00284211]
[1642672226204,4.06101148,3141.7,3141.6,0.00284211]
[1642672226706,2.066,3141.7,3141.6,0.00284211]
[1642672227108,1.066,3141.7,3141.6,0.00284211]
[1642672227308,0.466,3141.7,3141.6,0.00284211]
[1642672237156,0.466,3141.7,3141.5,0.16217067]
[1642672237359,1.26241,3141.7,3141.5,0.16217067]
[1642672238155,2.56241,3141.7,3141.5,0.16217067]
[1642672238356,1.56241,3141.7,3141.5,0.16217067]
[1642672238557,1.0,3141.6,3141.5,0.16217067]
[1642672238757,0.466,3141.6,3141.5,0.11217067]
[1642672245860,1.297502,3141.6,3141.5,0.11217067]
[1642672246063,2.297502,3141.6,3141.5,0.11217067]
[1642672246562,1.297502,3141.6,3141.5,0.11217067]
[1642672246860,2.297502,3141.6,3141.5,0.11217067]
[1642672247501,1.297502,3141.6,3141.5,0.11217067]
[1642672247702,2.297502,3141.6,3141.5,0.11217067]
[1642672248104,1.297502,3141.6,3141.5,0.11217067]
[1642672252851,1.297502,3141.6,3141.5,0.10477994]
[1642672255908,1.297502,3141.6,3141.2,0.79627]
[1642672256106,1.297502,3141.6,3141.3,2.70983342]
[1642672256307,1.297502,3141.6,3141.3,2.7115387]
[1642672257707,1.597502,3141.6,3141.3,2.7115387]
[1642672258007,1.597502,3141.6,3141.3,0.00170528]
[1642672258850,1.297502,3141.6,3141.3,0.00170528]
[1642672259250,1.297502,3141.6,3141.3,2.71168895]
[1642672259549,1.297502,3141.6,3141.4,0.00113685]
[1642672262600,1.297502,3141.6,3141.0,2.70999965]
[1642672262803,1.297502,3141.6,3141.0,2.7134102]
[1642672262999,1.297502,3141.6,3141.1,0.00284212]
[1642672264901,1.297502,3141.6,3141.0,0.00341055]
[1642672265304,1.297502,3141.6,3141.0,2.7134102]
[1642672265704,1.297502,3141.6,3141.1,0.00284212]
[1642672266953,2.93239505,3141.5,3141.1,0.00284212]
[1642672267152,1.466,3141.4,3141.1,0.00284212]
[1642672267354,0.7965,3141.3,3141.1,0.00284212]
[1642672267553,0.7965,3141.3,3140.9,0.00397897]
[1642672267753,0.7965,3141.3,3141.0,2.70999965]
[1642672268154,0.7965,3141.3,3141.1,0.00284212]